fUST/lending_fUST_20250602
["ID","MTS","AMOUNT","RATE_DAILY","PERIOD"]
[363801311,1748875856872,-1526.4,0.00020387,2]
[363801312,1748875856882,-430.0,0.00020387,2]
[363801313,1748875856892,-654.67,0.00020387,2]
[363801314,1748875856902,-3041.88,0.00020387,2]
[363801315,1748875856912,-501.42,0.00020387,2]
[363801316,1748875856922,-430.0,0.00020388,2]
[363801317,1748875856932,-434.65,0.00020388,2]
[363801318,1748875856942,-430.0,0.00020388,2]
[363801319,1748875856951,-430.0,0.00020388,2]
[363801320,1748875856961,-545.27775627,0.00020388,2]
[363801321,1748875856971,-430.0,0.00020388,2]
[363801322,1748875856982,-1091.3,0.00020388,2]
[363801323,1748875856994,-1175.57,0.00020388,2]
[363801324,1748875857004,-1163.93,0.00020388,2]
[363801325,1748875857014,-1000.0,0.00020521,2]
[363801326,1748875857024,-1000.0,0.00020521,2]
[363801327,1748875857034,-1000.0,0.00020521,2]
[363801328,1748875857044,-1000.0,0.00020521,2]
[363801329,1748875857054,-1000.0,0.00020521,2]
[363801330,1748875857065,-1000.0,0.00020521,2]
[363801331,1748875857074,-500.0,0.00020547,2]
[363801332,1748875857083,-1500.0,0.00020589,2]
[363801333,1748875857093,-1800.0,0.00020589,2]
[363801334,1748875857102,-1158.30283495,0.0002059,3]
[363801335,1748875857112,-1605.98,0.000206,2]
[363801336,1748875857122,-51296.41,0.000206,2]
[363801337,1748875857131,-7311.04,0.000206,2]
[363801338,1748875857141,-804.94,0.00020659,2]
[363801339,1748875857151,-1248.91,0.00020659,2]
[363801340,1748875857160,-1900.15,0.00020659,2]
[363801341,1748875857170,-2597.69,0.00020659,2]
[363801342,1748875857180,-2908.69,0.0002066,2]
[363801343,1748875857190,-430.0,0.0002066,2]
[363801344,1748875857200,-430.0,0.0002066,2]
[363801345,1748875857210,-430.0,0.0002066,2]
[363801346,1748875857219,-497.83,0.0002066,2]
[363801347,1748875857229,-1048.09,0.0002066,2]
[363801348,1748875857240,-430.0,0.0002066,2]
[363801349,1748875857250,-673.12,0.0002066,2]
[363801350,1748875857260,-430.0,0.0002066,2]
[363801351,1748875857271,-430.0,0.0002066,2]
[363801352,1748875857280,-564.67,0.0002066,2]
[363801353,1748875857290,-851.01,0.0002066,2]
[363801354,1748875857300,-430.0,0.0002066,2]
[363801355,1748875857311,-469.58,0.00020661,2]
[363801356,1748875857321,-458.12,0.00020661,2]
[363801357,1748875857331,-878.66,0.00020661,2]
[363801358,1748875857342,-430.0,0.00020661,2]
[363801359,1748875857353,-430.0,0.00020661,2]
[363801360,1748875857363,-430.0,0.00020661,2]
[363801361,1748875857374,-2068.77,0.00020661,2]
[363801362,1748875857387,-873.36,0.00020661,2]
[363801363,1748875857398,-430.0,0.00020661,2]
[363801364,1748875857410,-430.0,0.00020661,2]
[363801365,1748875857420,-476.02,0.00020661,2]
[363801366,1748875857431,-430.0,0.00020661,2]
[363801367,1748875857443,-430.0,0.00020661,2]
[363801368,1748875857458,-500.63933886,0.00020661,2]
[363801369,1748875857468,-565.92,0.00020661,2]
[363801370,1748875857478,-733.15,0.00020661,2]
[363801371,1748875857489,-430.0,0.00020661,2]
[363801372,1748875857499,-1526.4,0.00020661,2]
[363801373,1748875857509,-430.0,0.00020661,2]
[363801374,1748875857519,-654.67,0.00020661,2]
[363801375,1748875857529,-3041.88,0.00020661,2]
[363801376,1748875857539,-501.42,0.00020661,2]
[363801377,1748875857548,-351.18017293,0.00020662,2]
[363801378,1748875857558,-434.65,0.00020662,2]
[363801379,1748875857567,-368.16767938,0.00020662,2]
[363801380,1748875857577,-430.0,0.00020662,2]
[363801381,1748875857587,-1091.3,0.00020662,2]
[363801382,1748875857598,-1175.57,0.00020662,2]
[363801383,1748875857608,-1163.93,0.00020662,2]
[363801384,1748875857618,-160.0,0.00020664,2]
[363801385,1748875857627,-1158.30283495,0.00020797,4]
[363801386,1748875857637,-804.94,0.00020933,2]
[363801387,1748875857647,-1248.91,0.00020933,2]
[363801388,1748875857657,-1900.15,0.00020933,2]
[363801389,1748875857667,-2597.69,0.00020933,2]
[363801390,1748875857676,-2908.69,0.00020934,2]
[363801391,1748875857686,-430.0,0.00020934,2]
[363801392,1748875857698,-430.0,0.00020934,2]
[363801393,1748875857708,-430.0,0.00020934,2]
[363801394,1748875857718,-497.83,0.00020934,2]
[363801395,1748875857727,-1048.09,0.00020934,2]
[363801396,1748875857737,-430.0,0.00020934,2]
[363801397,1748875857748,-673.12,0.00020934,2]
[363801398,1748875857757,-430.0,0.00020934,2]
[363801399,1748875857767,-430.0,0.00020934,2]
[363801400,1748875857778,-564.67,0.00020934,2]
[363801401,1748875857788,-851.01,0.00020934,2]
[363801402,1748875857797,-430.0,0.00020934,2]
[363801403,1748875857808,-469.58,0.00020935,2]
[363801404,1748875857818,-458.12,0.00020935,2]
[363801405,1748875857828,-878.66,0.00020935,2]
[363801406,1748875857838,-430.0,0.00020935,2]
[363801407,1748875857847,-398.75041011,0.00020935,2]
[363801408,1748875857857,-430.0,0.00020935,2]
[363801409,1748875857867,-2068.77,0.00020935,2]
[363801410,1748875857878,-873.36,0.00020935,2]
[363801411,1748875857888,-430.0,0.00020935,2]
[363801412,1748875857898,-430.0,0.00020935,2]
[363801413,1748875857907,-476.02,0.00020935,2]
[363801414,1748875857917,-542.57,0.00020935,2]
[363801415,1748875857927,-430.0,0.00020935,2]
[363801416,1748875857937,-565.92,0.00020935,2]
[363801417,1748875857947,-733.15,0.00020935,2]
[363801418,1748875857956,-162.95621617,0.00020935,2]
[363801419,1748875857966,-1526.4,0.00020935,2]
[363801420,1748875857976,-430.0,0.00020935,2]
[363801421,1748875857985,-654.67,0.00020935,2]
[363801422,1748875857996,-3041.88,0.00020935,2]
[363801423,1748875858006,-501.42,0.00020935,2]
[363801424,1748875858015,-434.65,0.00020936,2]
[363801425,1748875858025,-430.0,0.00020936,2]
[363801426,1748875858035,-1091.3,0.00020936,2]
[363801427,1748875858044,-1175.57,0.00020936,2]
[363801428,1748875858054,-1163.93,0.00020936,2]
[363801429,1748875858063,-1158.30283495,0.00021003,4]
[363801430,1748875858073,-949.96,0.00021005,2]
[363801431,1748875858083,-1500.0,0.00021068,2]
[363801432,1748875858092,-1500.0,0.00021068,2]
[363801433,1748875858102,-500.0,0.00021095,3]
[363801434,1748875858112,-998.56595591,0.00021137,2]
[363801435,1748875858123,-2400.0,0.00021137,2]
[363801436,1748875858133,-804.94,0.00021207,2]
[363801437,1748875858142,-1248.91,0.00021207,2]
[363801438,1748875858152,-1900.15,0.00021207,2]
[363801439,1748875858161,-2908.69,0.00021208,2]
[363801440,1748875858171,-541.96,0.00021208,2]
[363801441,1748875858181,-430.0,0.00021208,2]
[363801442,1748875858190,-497.83,0.00021208,2]
[363801443,1748875858200,-1048.09,0.00021208,2]
[363801444,1748875858210,-430.0,0.00021208,2]
[363801445,1748875858220,-673.12,0.00021208,2]
[363801446,1748875858230,-430.0,0.00021208,2]
[363801447,1748875858240,-430.0,0.00021208,2]
[363801448,1748875858250,-564.67,0.00021208,2]
[363801449,1748875858260,-851.01,0.00021208,2]
[363801450,1748875858270,-430.0,0.00021208,2]
[363801451,1748875858279,-469.58,0.00021209,2]
[363801452,1748875858291,-458.12,0.00021209,2]
[363801453,1748875858300,-878.66,0.00021209,2]
[363801454,1748875858309,-430.0,0.00021209,2]
[363801455,1748875858319,-430.0,0.00021209,2]
[363801456,1748875858328,-2068.77,0.00021209,2]
[363801457,1748875858338,-873.36,0.00021209,2]
[363801458,1748875858347,-430.0,0.00021209,2]
[363801459,1748875858356,-476.02,0.00021209,2]
[363801460,1748875858366,-430.0,0.00021209,2]
[363801461,1748875858375,-565.92,0.00021209,2]
[363801462,1748875858385,-733.15,0.00021209,2]
[363801463,1748875858394,-1526.4,0.00021209,2]
[363801464,1748875858406,-430.0,0.00021209,2]
[363801465,1748875858416,-654.67,0.00021209,2]
[363801466,1748875858426,-3041.88,0.00021209,2]
[363801467,1748875858436,-501.42,0.00021209,2]
[363801468,1748875858447,-434.65,0.0002121,2]
[363801469,1748875858457,-430.0,0.0002121,2]
[363801470,1748875858467,-1091.3,0.0002121,2]
[363801471,1748875858477,-1175.57,0.0002121,2]
[363801472,1748875858487,-1163.93,0.0002121,2]
[363801473,1748875858498,-1158.30283495,0.0002121,4]
[363801474,1748875858507,-1000.0,0.00021225,2]
[363801475,1748875858517,-215.0738,0.00021342,2]
[363801476,1748875858527,-962.0,0.00021375,2]
[363801477,1748875858536,-2226.0,0.00021375,2]
[363801478,1748875858546,-708.0,0.00021375,2]
[363801479,1748875858555,-405.0,0.00021375,2]
[363801480,1748875858565,-235.413,0.00021375,2]
[363801481,1748875858574,-1158.30283495,0.00021417,5]
[363801482,1748875858584,-158.5152029,0.00021425,2]
[363801483,1748875858593,-153.0,0.00021425,2]
[363801484,1748875858602,-158.5152029,0.00021425,2]
[363801485,1748875858612,-153.0,0.00021425,2]
[363801486,1748875858621,-158.5152029,0.00021425,2]
[363801487,1748875858631,-316.8020878,0.00021425,2]
[363801488,1748875858641,-158.1426432,0.00021425,2]
[363801489,1748875858651,-203.512286,0.00021425,2]
[363801490,1748875858661,-804.94,0.00021481,2]
[363801491,1748875858671,-1248.91,0.00021481,2]
[363801492,1748875858680,-1900.15,0.00021481,2]
[363801493,1748875858690,-2908.69,0.00021482,2]
[363801494,1748875858699,-430.0,0.00021482,2]
[363801495,1748875858708,-497.83,0.00021482,2]
[363801496,1748875858720,-1048.09,0.00021482,2]
[363801497,1748875858729,-430.0,0.00021482,2]
[363801498,1748875858738,-673.12,0.00021482,2]
[363801499,1748875858748,-285.45419088,0.00021482,2]
[363801500,1748875858758,-430.0,0.00021482,2]
[363801501,1748875858768,-564.67,0.00021482,2]
[363801502,1748875858778,-851.01,0.00021482,2]
[363801503,1748875858788,-430.0,0.00021482,2]
[363801504,1748875858797,-469.58,0.00021483,2]
[363801505,1748875858807,-458.12,0.00021483,2]
[363801506,1748875858816,-878.66,0.00021483,2]
[363801507,1748875858826,-430.0,0.00021483,2]
[363801508,1748875858836,-430.0,0.00021483,2]
[363801509,1748875858846,-2068.77,0.00021483,2]
[363801510,1748875858855,-873.36,0.00021483,2]
[363801511,1748875858864,-430.0,0.00021483,2]
[363801512,1748875858874,-476.02,0.00021483,2]
[363801513,1748875858883,-430.0,0.00021483,2]
[363801514,1748875858894,-565.92,0.00021483,2]
[363801515,1748875858903,-733.15,0.00021483,2]
[363801516,1748875858912,-1526.4,0.00021483,2]
[363801517,1748875858922,-430.0,0.00021483,2]
[363801518,1748875858932,-654.67,0.00021483,2]
[363801519,1748875858943,-3041.88,0.00021483,2]
[363801520,1748875858953,-501.42,0.00021483,2]
[363801521,1748875858963,-434.65,0.00021484,2]
[363801522,1748875858972,-395.97687301,0.00021484,2]
[363801523,1748875858983,-1091.3,0.00021484,2]
[363801524,1748875858993,-1175.57,0.00021484,2]
[363801525,1748875859003,-1163.93,0.00021484,2]
[363801526,1748875859014,-250.0,0.00021522,2]
[363801527,1748875859024,-625.26263881,0.00021576,2]
[363801528,1748875859034,-583.0,0.00021591,2]
[363801529,1748875859044,-823.0,0.00021591,2]
[363801530,1748875859054,-2000.0,0.00021616,2]
[363801531,1748875859064,-1158.30283495,0.00021624,5]
[363801532,1748875859074,-500.0,0.00021643,4]
[363801533,1748875859083,-3694.66877709,0.00021658,2]
[363801534,1748875859093,-3000.0,0.00021685,2]
[363801535,1748875859102,-51296.41,0.000217,2]
[363801536,1748875859112,-7311.04,0.000217,2]
[363801537,1748875859122,-625.26263881,0.00021733,2]
[363801538,1748875859132,-804.94,0.00021755,2]
[363801539,1748875859142,-1248.91,0.00021755,2]
[363801540,1748875859152,-1900.15,0.00021755,2]
[363801541,1748875859163,-2908.69,0.00021756,2]
[363801542,1748875859174,-430.0,0.00021756,2]
[363801543,1748875859184,-497.83,0.00021756,2]
[363801544,1748875859195,-1048.09,0.00021756,2]
[363801545,1748875859205,-430.0,0.00021756,2]
[363801546,1748875859214,-673.12,0.00021756,2]
[363801547,1748875859224,-437.83798343,0.00021756,2]
[363801548,1748875859234,-564.67,0.00021756,2]
[363801549,1748875859245,-851.01,0.00021756,2]
[363801550,1748875859255,-430.0,0.00021756,2]
[363801551,1748875859264,-469.58,0.00021757,2]
[363801552,1748875859274,-458.12,0.00021757,2]
[363801553,1748875859284,-878.66,0.00021757,2]
[363801554,1748875859294,-430.0,0.00021757,2]
[363801555,1748875859413,-311.26,0.00021757,2]
[363801556,1748875859424,-2068.77,0.00021757,2]
[363801557,1748875859435,-873.36,0.00021757,2]
[363801558,1748875859446,-430.0,0.00021757,2]
[363801559,1748875859456,-476.02,0.00021757,2]
[363801560,1748875859465,-275.70767632,0.00021757,2]
[363801561,1748875859475,-565.92,0.00021757,2]
[363801562,1748875859485,-733.15,0.00021757,2]
[363801563,1748875859497,-1526.4,0.00021757,2]
[363801564,1748875859507,-430.0,0.00021757,2]
[363801565,1748875859517,-654.67,0.00021757,2]
[363801566,1748875859527,-3041.88,0.00021757,2]
[363801567,1748875859537,-501.42,0.00021757,2]
[363801568,1748875859547,-434.65,0.00021758,2]
[363801569,1748875859557,-1091.3,0.00021758,2]
[363801570,1748875859568,-1175.57,0.00021758,2]
[363801571,1748875859579,-1163.93,0.00021758,2]
[363801572,1748875859588,-1605.98,0.000218,2]
[363801573,1748875859598,-1158.30283495,0.00021831,6]
[363801574,1748875859608,-3694.66877708,0.000219,2]
[363801575,1748875859618,-500.0,0.00021917,2]
[363801576,1748875859628,-150.0,0.00021918,2]
[363801577,1748875859638,-39151.83209431,0.00021998,2]
[363801578,1748875859648,-151.0,0.00021998,7]
[363801579,1748875859658,-151.0,0.00021998,7]
[363801580,1748875859668,-151.0,0.00021998,7]
[363801581,1748875859677,-364.4406513,0.00022,2]
[363801582,1748875859687,-364.4406513,0.00022,2]
[363801583,1748875859697,-286.9785289,0.00022,2]
[363801584,1748875859706,-2173.37,0.00022,2]
[363801585,1748875859716,-5000.0,0.00022,2]
[363801586,1748875859725,-5000.0,0.00022,2]
[363801587,1748875859736,-804.94,0.00022029,2]
[363801588,1748875859748,-1248.91,0.00022029,2]
[363801589,1748875859758,-1900.15,0.00022029,2]
[363801590,1748875859768,-2908.69,0.0002203,2]
[363801591,1748875859778,-430.0,0.0002203,2]
[363801592,1748875859788,-497.83,0.0002203,2]
[363801593,1748875859798,-1048.09,0.0002203,2]
[363801594,1748875859809,-430.0,0.0002203,2]
[363801595,1748875859819,-673.12,0.0002203,2]
[363801596,1748875859829,-564.67,0.0002203,2]
[363801597,1748875859840,-851.01,0.0002203,2]
[363801598,1748875859851,-430.0,0.0002203,2]
[363801599,1748875859861,-469.58,0.00022031,2]
[363801600,1748875859871,-458.12,0.00022031,2]
[363801601,1748875859882,-878.66,0.00022031,2]
[363801602,1748875859892,-327.12954051,0.00022031,2]
[363801603,1748875859903,-2068.77,0.00022031,2]
[363801604,1748875859913,-873.36,0.00022031,2]
[363801605,1748875859923,-430.0,0.00022031,2]
[363801606,1748875859933,-476.02,0.00022031,2]
[363801607,1748875859943,-565.92,0.00022031,2]
[363801608,1748875859953,-733.15,0.00022031,2]
[363801609,1748875859963,-1526.4,0.00022031,2]
[363801610,1748875859972,-430.0,0.00022031,2]
[363801611,1748875859983,-654.67,0.00022031,2]
[363801612,1748875859992,-3041.88,0.00022031,2]
[363801613,1748875860002,-501.42,0.00022031,2]
[363801614,1748875860012,-434.65,0.00022032,2]
[363801615,1748875860022,-1091.3,0.00022032,2]
[363801616,1748875860033,-1175.57,0.00022032,2]
[363801617,1748875860043,-1163.93,0.00022032,2]
[363801618,1748875860053,-236.62709331,0.00022034,2]
[363801619,1748875860064,-1158.30283495,0.00022038,6]
[363801620,1748875860075,-625.26263881,0.00022116,2]
[363801621,1748875860087,-3694.66877708,0.00022141,2]
[363801622,1748875860097,-2500.0,0.00022164,2]
[363801623,1748875860108,-500.0,0.00022191,5]
[363801624,1748875860117,-3600.0,0.00022233,2]
[363801625,1748875860125,-1158.30283495,0.00022245,6]
[363801626,1748875860134,-522.35139617,0.00022258,2]
[363801627,1748875860252,-102.91124265,0.00022258,2]
[363801628,1748875860263,-174.9723149,0.00022274,2]
[363801629,1748875860273,-572.502888,0.00022274,2]
[363801630,1748875860282,-153.0,0.00022274,2]
[363801631,1748875860292,-153.0,0.00022274,2]
[363801632,1748875860302,-572.502888,0.00022274,2]
[363801633,1748875860312,-153.0,0.00022274,2]
[363801634,1748875860323,-153.0,0.00022274,2]
[363801635,1748875860333,-804.94,0.00022303,2]
[363801636,1748875860343,-1248.91,0.00022303,2]
[363801637,1748875860353,-1499.42352072,0.00022303,2]
[363801638,1748875860613,-271.60692855,0.00016385,2]
[363801639,1748875860623,-430.0,0.0001655,2]
[363801640,1748875860633,-173.09082452,0.00016824,2]
[363801641,1748875860643,-212.83419937,0.00018173,2]
[363801642,1748875860653,-2597.69,0.00021207,2]
[363801643,1748875860663,-2597.69,0.00021481,2]
[363801644,1748875860672,-2597.69,0.00021755,2]
[363801645,1748875860681,-2597.69,0.00022029,2]
[363801646,1748875860691,-400.72647928,0.00022303,2]
[363801647,1748875860700,-2597.69,0.00022303,2]
[363801648,1748875860710,-2908.69,0.00022304,2]
[363801649,1748875860720,-227.69612072,0.00022304,2]
[363801650,1748875860729,-497.83,0.00022304,2]
[363801651,1748875860739,-1048.09,0.00022304,2]
[363801652,1748875860751,-486.63,0.00022304,2]
[363801653,1748875860761,-673.12,0.00022304,2]
[363801654,1748875860771,-564.67,0.00022304,2]
[363801655,1748875860781,-851.01,0.00022304,2]
[363801656,1748875860791,-430.0,0.00022304,2]
[363801657,1748875860800,-469.58,0.00022305,2]
[363801658,1748875860809,-458.12,0.00022305,2]
[363801659,1748875860819,-878.66,0.00022305,2]
[363801660,1748875860829,-2068.77,0.00022305,2]
[363801661,1748875860839,-873.36,0.00022305,2]
[363801662,1748875860849,-430.0,0.00022305,2]
[363801663,1748875860859,-476.02,0.00022305,2]
[363801664,1748875860869,-565.92,0.00022305,2]
[363801665,1748875860879,-733.15,0.00022305,2]
[363801666,1748875860889,-1526.4,0.00022305,2]
[363801667,1748875860899,-654.67,0.00022305,2]
[363801668,1748875860908,-3041.88,0.00022305,2]
[363801669,1748875860918,-501.42,0.00022305,2]
[363801670,1748875860928,-434.65,0.00022306,2]
[363801671,1748875860939,-1091.3,0.00022306,2]
[363801672,1748875860950,-1175.57,0.00022306,2]
[363801673,1748875860960,-1163.93,0.00022306,2]
[363801674,1748875860970,-1000.0,0.00022321,2]
[363801675,1748875860981,-3694.66877708,0.00022383,2]
[363801676,1748875860992,-1158.30283495,0.00022452,7]
[363801677,1748875861002,-500.0,0.00022465,2]
[363801678,1748875861012,-2200.0,0.00022474,2]
[363801679,1748875861023,-1818.36456554,0.00022558,2]
[363801680,1748875861033,-804.94,0.00022577,2]
[363801681,1748875861043,-1248.91,0.00022577,2]
[363801682,1748875861054,-1900.15,0.00022577,2]
[363801683,1748875861064,-2597.69,0.00022577,2]
[363801684,1748875861074,-2908.69,0.00022578,2]
[363801685,1748875861085,-497.83,0.00022578,2]
[363801686,1748875861095,-1048.09,0.00022578,2]
[363801687,1748875861105,-673.12,0.00022578,2]
[363801688,1748875861116,-564.67,0.00022578,2]
[363801689,1748875861127,-851.01,0.00022578,2]
[363801690,1748875861137,-430.0,0.00022578,2]
[363801691,1748875861147,-469.58,0.00022579,2]
[363801692,1748875861157,-458.12,0.00022579,2]
[363801693,1748875861166,-878.66,0.00022579,2]
[363801694,1748875861176,-2068.77,0.00022579,2]
[363801695,1748875861186,-873.36,0.00022579,2]
[363801696,1748875861196,-476.02,0.00022579,2]
[363801697,1748875861206,-565.92,0.00022579,2]
[363801698,1748875861216,-733.15,0.00022579,2]
[363801699,1748875861226,-1526.4,0.00022579,2]
[363801700,1748875861236,-654.67,0.00022579,2]
[363801701,1748875861248,-3041.88,0.00022579,2]
[363801702,1748875861258,-501.42,0.00022579,2]
[363801703,1748875861269,-434.65,0.0002258,2]
[363801704,1748875861279,-1091.3,0.0002258,2]
[363801705,1748875861289,-1175.57,0.0002258,2]
[363801706,1748875861298,-1163.93,0.0002258,2]
[363801707,1748875861308,-244.644001,0.00022603,2]
[363801708,1748875861318,-3694.66877708,0.00022624,2]
[363801709,1748875861328,-1158.30283495,0.00022659,7]
[363801710,1748875861339,-223.0315306,0.00022711,2]
[363801711,1748875861349,-3000.0,0.00022712,2]
[363801712,1748875861358,-500.0,0.00022739,6]
[363801713,1748875861368,-900.0,0.0002278,2]
[363801714,1748875861378,-999.53640872,0.00022781,2]
[363801715,1748875861388,-32491.92,0.0002279,10]
[363801716,1748875861398,-27076.6,0.0002279,10]
[363801717,1748875861411,-548.18,0.000228,7]
[363801718,1748875861420,-51296.41,0.000228,2]
[363801719,1748875861430,-7311.04,0.000228,2]
[363801720,1748875861439,-151.0,0.000228,7]
[363801721,1748875861449,-12668.79298183,0.000228,10]
[363801722,1748875861459,-151.0,0.000228,7]
[363801723,1748875861469,-151.0,0.000228,7]
[363801724,1748875861478,-1899.91,0.00022851,2]
[363801725,1748875861490,-804.98,0.00022851,2]
[363801726,1748875861501,-1249.08,0.00022851,2]
[363801727,1748875861511,-1900.37,0.00022851,2]
[363801728,1748875861521,-2597.9,0.00022851,2]
[363801729,1748875861531,-2908.80532825,0.00022852,2]
[363801730,1748875861541,-497.84911429,0.00022852,2]
[363801731,1748875861551,-1048.25,0.00022852,2]
[363801732,1748875861560,-673.18,0.00022852,2]
[363801733,1748875861571,-564.69,0.00022852,2]
[363801734,1748875861580,-851.2,0.00022852,2]
[363801735,1748875861591,-234.3750195,0.00022852,2]
[363801736,1748875861603,-469.7666666,0.00022853,2]
[363801737,1748875861613,-458.30774497,0.00022853,2]
[363801738,1748875861623,-878.82791915,0.00022853,2]
[363801739,1748875861632,-1091.37,0.00022853,2]
[363801740,1748875861642,-1175.67,0.00022853,2]
[363801741,1748875861652,-1164.15,0.00022853,2]
[363801742,1748875861661,-2068.87794709,0.00022853,2]
[363801743,1748875861671,-873.38,0.00022853,2]
[363801744,1748875861796,-476.13,0.00022853,2]
[363801745,1748875861806,-565.93,0.00022853,2]
[363801746,1748875861817,-733.31,0.00022853,2]
[363801747,1748875861827,-1526.61051316,0.00022853,2]
[363801748,1748875861838,-654.88,0.00022853,2]
[363801749,1748875861848,-3041.98,0.00022853,2]
[363801750,1748875861857,-501.43,0.00022853,2]
[363801751,1748875861867,-434.7,0.00022854,2]
[363801752,1748875861877,-1158.30283495,0.00022866,8]
[363801753,1748875861887,-3694.66877708,0.00022866,2]
[363801754,1748875861897,-2000.0,0.000229,2]
[363801755,1748875861907,-70691.54,0.000229,7]
[363801756,1748875861917,-1605.98,0.000229,7]
[363801757,1748875861926,-170.69,0.00022979,8]
[363801758,1748875861936,-114315.39710221,0.00022998,2]
[363801759,1748875861947,-151.0,0.00022998,7]
[363801760,1748875861957,-151.0,0.00022998,7]
[363801761,1748875861968,-200.0,0.00023,2]
[363801762,1748875861978,-160.0,0.00023,3]
[363801763,1748875861987,-160.0,0.00023,3]
[363801764,1748875861998,-212.83419937,0.00023,3]
[363801765,1748875862008,-160.0,0.00023,3]
[363801766,1748875862019,-423.56953423,0.00023,3]
[363801767,1748875862030,-160.0,0.00023,3]
[363801768,1748875862039,-160.0,0.00023,3]
[363801769,1748875862051,-229.39799938,0.00023,3]
[363801770,1748875862061,-500.0,0.00023013,2]
[363801771,1748875862071,-1158.30283495,0.00023072,8]
[363801772,1748875862081,-3694.66877708,0.00023107,2]
[363801773,1748875862091,-1007.015929,0.00023129,3]
[363801774,1748875862101,-306.0,0.00023258,2]
[363801775,1748875862111,-3500.0,0.0002326,2]
[363801776,1748875862121,-1158.30283495,0.00023279,8]
[363801777,1748875862130,-500.0,0.00023287,7]
[363801778,1748875862140,-273271.9459067,0.00023289,7]
[363801779,1748875862150,-151.0,0.00023289,7]
[363801780,1748875862160,-151.0,0.00023289,7]
[363801781,1748875862171,-558.189353,0.00023289,7]
[363801782,1748875862181,-558.189353,0.00023289,7]
[363801783,1748875862190,-151.0,0.00023289,7]
[363801784,1748875862201,-151.0,0.00023289,7]
[363801785,1748875862211,-262.774268,0.00023289,7]
[363801786,1748875862222,-92778.02209361,0.000233,3]
[363801787,1748875862236,-1818.19069985,0.000233,3]
[363801788,1748875862249,-49945.79098624,0.000233,3]
[363801789,1748875862563,-430.0,0.00016549,2]
[363801790,1748875862573,-230.98783582,0.0001655,2]
[363801791,1748875862584,-430.0,0.00016551,2]
[363801792,1748875862593,-468.01,0.00016825,2]
[363801793,1748875862603,-430.0,0.00019178,2]
[363801794,1748875862613,-430.0,0.00019178,2]
[363801795,1748875862622,-439.10259243,0.00019178,2]
[363801796,1748875862632,-22563.84,0.0002279,10]
[363801797,1748875862642,-60439.55031554,0.000233,3]
[363801798,1748875862779,-430.0,0.00016549,2]
[363801799,1748875862790,-430.0,0.00016823,2]
[363801800,1748875862800,-430.0,0.00017097,2]
[363801801,1748875862811,-430.0,0.00017371,2]
[363801802,1748875862821,-430.0,0.00017645,2]
[363801803,1748875862831,-430.0,0.00017919,2]
[363801804,1748875862842,-430.0,0.00018193,2]
[363801805,1748875862852,-430.0,0.00018467,2]
[363801806,1748875862863,-150.0,0.00021375,2]
[363801807,1748875862873,-7104.1152083,0.000233,3]
[363801808,1748875862894,-430.0,0.00018741,2]
[363801809,1748875862904,-790.22845182,0.000233,3]
[363801810,1748875864656,7499.00259767,0.000239,120]